Cogmind - Beta 12 @@@ ROGUE MODE // 2023.12.17 @ 04:17:09 Player: Exo Result: Destroyed by G-47 Trooper with Particle Gun Performance ------------- Evolutions (1) 500 Regions Visited (2) 400 Robots Destroyed (27) 135 Value Destroyed (796) 796 Prototype IDs (1) 20 Alien Tech Used (0) 0 Bonus (0) 0 TOTAL SCORE: 1851 Bonus ------- None Cogmind --------- Core Integrity 0/400 Matter 300/300 Energy 249/250 System Corruption 0% Temperature Cool (47) Movement Walking (190) Ox1 Location -9/Materials Parts ------- > --- POWER (1) -------- Ion Engine > --- PROPULSION (4) --- Aluminum Leg Aluminum Leg Wheel > --- UTILITY (2) ------ Heat Sink Large Storage Unit > --- WEAPON (2) ------- Particle Gun > --- INVENTORY (15) --- Light Nuclear Core Improved Aluminum Leg Wheel Wheel Medium Storage Unit ECM Suite ECM Suite Shield Generator EM Shotgun Small Laser Small Laser Beam Rifle Particle Gun Heavy Assault Rifle Peak State ------------ > --- POWER ------------ Light Ion Engine > --- PROPULSION ------- Aluminum Leg Improved Aluminum Leg Improved Aluminum Leg Improved Aluminum Leg > --- UTILITY ---------- Heat Sink Large Storage Unit > --- WEAPON ----------- Small Laser Beam Cannon > --- INVENTORY -------- Ion Engine Ion Engine Light Ion Engine Light Nuclear Core Aluminum Leg Aluminum Leg Aluminum Leg Improved Aluminum Leg Medium Storage Unit ECM Suite ECM Suite Small Laser Beam Rifle Particle Gun Heavy Assault Rifle [Rating: 14] Favorites ----------- Power Ion Engine Engine Ion Engine Propulsion Aluminum Leg Leg Aluminum Leg Wheel Wheel Utility Large Storage Unit Device Heat Sink Storage Large Storage Unit Weapon Light Assault Rifle Energy Gun Small Laser Energy Cannon Beam Cannon Ballistic Gun Light Assault Rifle Build | -11 -10 -9 ------- Run | Jun Mat Mat Slots Evolved 2 | . . 2 Power . | . . . Propulsion 2 | . . 2 Utility . | . . . Weapon . | . . . Parts Attached 36 | 7 5 24 Power 9 | 2 3 4 Engine 9 | 2 3 4 Core . | . . . Reactor . | . . . Propulsion 13 | 2 . 11 Treads . | . . . Leg 12 | 2 . 10 Wheel 1 | . . 1 Hover . | . . . Flight . | . . . Utility 6 | 1 2 3 Device 4 | . 1 3 Storage 2 | 1 1 . Processor . | . . . Hackware . | . . . Protection . | . . . Artifact . | . . . Weapon 8 | 2 . 6 Energy Gun 4 | . . 4 Energy Cannon 1 | . . 1 Ballistic Gun 3 | 2 . 1 Ballistic Cannon . | . . . Launcher . | . . . Special Weapon . | . . . Impact Weapon . | . . . Slashing Weapon . | . . . Piercing Weapon . | . . . Special Melee Weapon . | . . . Unidentified Prototypes 1 | . 1 . Parts Lost 15 | . . 15 Power 2 | . . 2 Propulsion 7 | . . 7 Utility 2 | . . 2 Weapon 4 | . . 4 Highest Loss Streak 4 | . . 4 To Critical Strikes . | . . . Average Slot Usage (%) 89 | . 94 88 Engine 10 | . 14 9 Leg 32 | . 28 33 Wheel 1 | . . 2 Device 9 | . 8 10 Storage 11 | . 14 11 Energy Gun 7 | . . 9 Energy Cannon 3 | . . 4 Ballistic Gun 12 | . 28 7 Naked Turns . | . . . Heaviest Build 32 | 13 29 32 Greatest Support 49 | 20 20 49 Greatest Overweight (x) 8 | . 1 8 Average Overweight (x) . | . . . Largest Inventory Capacity 15 | 8 15 15 Average Capacity 13 | 6 11 15 Most Carried 15 | 2 12 15 Average Carried 11 | 1 8 12 Final Capacity 15 | 8 15 15 Final Carried 14 | 2 12 14 Class Distribution -------------------- 60% | Mutant 39% | Scavenger-Mutant Dominant Class ---------------- Mutant | -10/Materials Scavenger-Mutant | -9/Materials Resources | -11 -10 -9 ----------- Run | Jun Mat Mat Matter Collected 723 | 215 117 391 Remotely . | . . . Salvage Created 1063 | . 167 896 Parts 64 | . 10 54 Haulers Intercepted . | . . . Recyclers Shooed . | . . . Parts Field Recycled . | . . . Retrieved Matter . | . . . Parts Self-Destructed . | . . . Prevented . | . . . Kills | -11 -10 -9 ------- Run | Jun Mat Mat Combat Hostiles Destroyed 22 | . 4 18 Guns 16 | . 4 12 Cannons 6 | . . 6 Classes Destroyed 7 | . 1 6 Worker 3 | . . 3 Builder 1 | . . 1 Recycler 1 | . . 1 Swarmer 3 | . . 3 Grunt 14 | . 4 10 Duelist 1 | . . 1 Sentry 4 | . . 4 Best Kill Streak 3 | . 2 3 Combat Bots Only 3 | . 2 3 Max Kills in Single Turn 2 | . 1 2 Gunslinging . | . . . Exploded . | . . . Melee . | . . . Uniques/NPCs Destroyed . | . . . Combat | -11 -10 -9 -------- Run | Jun Mat Mat Damage Taken 2212 | . 193 2019 Core 455 | . 52 403 Absorbed by Shields . | . . . Core Remaining (%) 89 | 100 79 . Volleys Fired 109 | . 17 92 Largest 2 | . 2 2 Hottest 100 | . 40 100 Shots Fired 193 | . 34 159 Gun 164 | . 34 130 Cannon 29 | . . 29 Launcher . | . . . Special . | . . . Kinetic 103 | . 34 69 Thermal 90 | . . 90 Explosive . | . . . Electromagnetic . | . . . Robot Hit Streak 11 | . 6 11 Robot Miss Streak 7 | . 4 7 Penetration Max . | . . . Secondary Targets 5 | . 1 4 Max Gunslinging Chain 1 | . 1 1 Shots Hit Robots 123 | . 20 103 Core Hits 46 | . 9 37 Critical Kills . | . . . Critical Parts Destroyed . | . . . Critical Strikes 2 | . . 2 Burn 2 | . . 2 Melee Attacks . | . . . Impact . | . . . Slashing . | . . . Piercing . | . . . Sneak Attacks . | . . . Combat Hostiles . | . . . Follow-up Attacks . | . . . Damage Inflicted 1650 | . 211 1439 Guns 1314 | . 211 1103 Cannons 332 | . . 332 Explosions . | . . . Melee . | . . . Ramming 4 | . . 4 Kinetic 757 | . 211 546 Thermal 889 | . . 889 Explosive . | . . . Electromagnetic . | . . . Impact . | . . . Slashing . | . . . Piercing . | . . . Highest Corruption . | . . . Average Corruption . | . . . Corruption Purged . | . . . Corruption Blocked . | . . . Overload Shots . | . . . Overflow Damage . | . . . Projectiles . | . . . Explosions . | . . . Melee . | . . . Knockbacks . | . . . Impact . | . . . Kinetic . | . . . Secondary . | . . . Self-Inflicted Damage . | . . . Shots . | . . . Rammed . | . . . Targets Rammed 1 | . . 1 Kicked 1 | . . 1 Crushed . | . . . Highest Temperature 243 | . 6 243 Average Temperature 72 | . 6 72 Received Heat Transfer 993 | . 111 882 Siege Activations . | . . . Robots Corrupted . | . . . Combat Hostiles . | . . . Parts Fried . | . . . Impact Corruptions . | . . . Robots Melted . | . . . Combat Hostiles . | . . . Parts Melted 2 | . . 2 Heat Transferred 2143 | . . 2143 Parts Sabotaged . | . . . Parts Stolen . | . . . Parts Stripped . | . . . Power Chain Reactions . | . . . Missiles Intercepted . | . . . Alert | -11 -10 -9 ------- Run | Jun Mat Mat Peak Influence 287 | . 125 287 Initial 52 | . . 52 Average 117 | . 63 142 Maximum Alert Level 1 | . . 1 Low Security (%) 85 | 100 100 79 Level 1 14 | . . 20 Level 2 . | . . . Level 3 . | . . . Level 4 . | . . . Level 5 . | . . . High Security . | . . . Max Security . | . . . Squads Dispatched 4 | . 2 2 Investigation 1 | . 1 . Extermination . | . . . Reinforcement 3 | . 1 2 Assault . | . . . Garrison . | . . . Intercept . | . . . Searches Triggered . | . . . Construction Impeded . | . . . Haulers Reinforced . | . . . Active Scanning Responses . | . . . Cargo Convoy Interrupts . | . . . Stealth | -11 -10 -9 --------- Run | Jun Mat Mat Distress Signals 1 | . . 1 Communications Jammed . | . . . Distress Signals . | . . . Times Spotted 30 | . 8 22 Peak Tracking Total 7 | . 2 7 Tactical Retreats . | . . . Traps | -11 -10 -9 ------- Run | Jun Mat Mat Traps Triggered 1 | . 1 . Indirectly . | . . . Trap Hack Attempts . | . . . Triggered . | . . . Disarmed . | . . . Reprogrammed . | . . . Reused . | . . . Traps Extracted . | . . . Installed . | . . . Triggered . | . . . Machines | -11 -10 -9 ---------- Run | Jun Mat Mat Machines Disabled 1 | . . 1 Max in Single Turn 1 | . . 1 Machines Repaired . | . . . Machines Sabotaged . | . . . Overloaded Fab Kills . | . . . Hacking | -11 -10 -9 --------- Run | Jun Mat Mat Machines Accessed 3 | . 1 2 Terminals . | . . . Fabricators . | . . . Repair Stations . | . . . Recycling Units 1 | . 1 . Scanalyzers 2 | . . 2 Garrison Access . | . . . Total Hacks 5 | . 1 4 Successful 5 | . 1 4 Failed . | . . . Catastrophic . | . . . Database Lockouts . | . . . Manual . | . . . Terminals . | . . . Fabricators . | . . . Repair Stations . | . . . Recycling Units 1 | . 1 . Scanalyzers 4 | . . 4 Garrison Access . | . . . Terminal Hacks . | . . . Fabricator Hacks . | . . . Repair Station Hacks . | . . . Recycling Unit Hacks 1 | . 1 . Report Inventory 1 | . 1 . Scanalyzer 4 | . . 4 Insert Component 2 | . . 2 Analyze 2 | . . 2 Garrison Access Hacks . | . . . Unauthorized Hacks . | . . . Terminals . | . . . Fabricators . | . . . Repair Stations . | . . . Recycling Units . | . . . Scanalyzers . | . . . Garrison Access . | . . . Data Cores Recovered . | . . . Used . | . . . Hacking Detections . | . . . Full Trace Events . | . . . Feedback Events . | . . . Feedback Blocked . | . . . Robot Schematics Acquired . | . . . Robots Built . | . . . Authchips . | . . . Time . | . . . Total Robot Build Rating . | . . . Part Schematics Acquired 2 | . . 2 Parts Built . | . . . Authchips . | . . . Time . | . . . Total Part Build Rating . | . . . Parts Repaired . | . . . Time . | . . . Parts Recycled . | . . . Recycled Matter . | . . . Retrieved Matter . | . . . Retrieved Components . | . . . Parts Scanalyzed 2 | . . 2 Part Schematics Acquired 2 | . . 2 Parts Damaged . | . . . Bothacking | -11 -10 -9 ------------ Run | Jun Mat Mat Used RIF Installer . | . . . Robots Hacked . | . . . Non-combat . | . . . Combat . | . . . Robot Hacks Applied . | . . . Relay Couplers Released . | . . . Fabnet Peak Effective % . | . . . Robots Rewired . | . . . Allies Hacked . | . . . Hacks Repelled . | . . . Allies | -11 -10 -9 -------- Run | Jun Mat Mat Total Allies . | . . . Largest Group . | . . . Highest-Rated Group . | . . . Highest-Rated Ally . | . . . Total Orders . | . . . Ally Attacks . | . . . Total Damage . | . . . Kills . | . . . Allies Corrupted . | . . . Allies Melted . | . . . Intel | -11 -10 -9 ------- Run | Jun Mat Mat Robot Analysis Total . | . . . Derelict Logs Recovered . | . . . Drone Launches . | . . . Drone Recoveries . | . . . Exploration | -11 -10 -9 ------------- Run | Jun Mat Mat Turns Passed 1421 | 60 336 1025 Spaces Moved 681 | 44 182 455 Core 18 | 5 . 13 Treads . | . . . Legs 663 | 39 182 442 Wheels . | . . . Hover . | . . . Flight . | . . . Fastest Speed 50 | 50 120 120 Average Speed 146 | 112 148 148 Slowest Speed 450 | 120 190 450 Overloaded Moves . | . . . Propulsion Burnouts . | . . . Robots Hopped . | . . . Cave-ins Triggered . | . . . Exploration Rate (%) 24 | 4 31 39 Regions Visited 2 Branch Regions . Pre-discovered Areas . | . . . Known Exits Taken . | . . . Unknown Exits Taken 2 | 1 1 . Scrap Searched . | . . . Spaces Dug . | . . . Terrain Destroyed . | . . . Melee . | . . . Projectile . | . . . AOE . | . . . Terrain Rammed . | . . . Walls Destroyed . | . . . Machines Disabled . | . . . Actions | -11 -10 -9 --------- Run | Jun Mat Mat Total 915 | 51 217 647 Wait 52 | . . 52 Move 679 | 43 181 455 Hop . | . . . Pick Up 29 | 1 11 17 Fast Attach 9 | 6 1 2 Attach 15 | . 1 14 Detach 1 | . . 1 Swap 12 | 1 3 8 Drop 8 | . 3 5 Fire 109 | . 17 92 Melee . | . . . Ram . | . . . Kick 1 | . . 1 Crush . | . . . Escape Stasis . | . . . Rewire . | . . . Trap . | . . . Miscellaneous . | . . . Route ------- -11/Junkyard -10/Materials -9/Materials History --------- Turn | Location | Event 3 | -11/Junkyard | Discovered new exit (range 15) 61 | -11/Junkyard | Entered Materials 308 | -10/Materials | Build established: Mutant 376 | -10/Materials | Discovered new exit (range 6) 397 | -10/Materials | Entered another Materials area 397 | -9/Materials | Evolved 2 slots: Propulsion x2 524 | -9/Materials | Lost 3 parts (1n1u1w) 953 | -9/Materials | Lost 4 parts (1p2n1w) 986 | -9/Materials | Core integrity fell below 50% 1040 | -9/Materials | Lost 4 parts (1p1n1u1w) 1081 | -9/Materials | Core integrity fell below 20% 1129 | -9/Materials | Lost 3 parts (3n) 1422 | -9/Materials | Destroyed by G-47 Trooper with Particle Gun Last Messages --------------- K-01 Serf destroyed. Extracted 9 matter. Extracted 10 matter. Acquired Wheel. Acquired 10 matter. R-06 Scavenger collects Wheel. Connecting with Scanalyzer... >>Insert(Sml. Laser) Scanning Sml. Laser... Ready to analyze. >>Scanalyze Scanning: Sml. Laser... Schematic downloaded. Acquired EM Shotgun. O-16 Technician: "IFF HANDSHAKE FAILED. SECURING TERMINAL." ALERT: Hostiles spotted, dispatching reinforcements to Terminal M002. G-34 Mercenary destroyed. Acquired 12 matter. Critical hit (Burn: +37). Hvy. Assault Rifle destroyed. Map ----- +----------------------------------------------------+ | #????????????????????????? | | #????????????????????????? | | ###########????????????????????????? | | #????????????????????????????? | | #????????????????????????????? | | #????????????????????????????? | | #????????????????????????????? | | "" #????????????????????????????? | | """ #????????????? ??????????????? | | """ #????????????? ??????????????? | | """ #????????????? ??????????????? | | "" #????????????? ??????????????? | | #????????????? ??????????????? | | #######????????????? ??????????????? | | ????################+####??????????? | | ????# # #??????????? | | ????# T # #??????????? | | ????# """ # #??????????? | | ????# """ # #??######??? | | ????# """ # #??"""""#??? | | ????# """ # ###""T""###? | | ????# """ #? # #? | | ????# #??? ?# #? | | #############+######+#### #? | | =Y[#* #? | | k *!g/@ #? | | a=#= #? | | ######/################ # #? | | ?????# "" #???????# # #? | | ?????# ""S #???????#+###########? | | ?????# "" #????????????????????? | | ?????# #????????????????????? | | ?????# #????????????????????? | | ?????# """ #????????????????????? | | ?????# """ #????????????????????? | | ?????# """ #????????????????????? | | ?????# #????????????????????? | | ?????##########????????????????????? | | ???????????????????????????????????? | | ???????????????????????????????????? | | ???????????????????????????????????? | | ???????????????????????????????????? | | ???????????????????????????????????? | | ???????????????????????????????????? | | ???????????????????????????????????? | | ???????????????????????????????????? | | ???????????????????????????????????? | | ???????????????????????????????????? | | ???????????????????????????????????? | | ???????????????????????????????????? | +----------------------------------------------------+ Best States ------------- Heat Dissipation 38 Energy Generation 10 Energy Capacity 250 Matter Stores 300 Matter Capacity 300 Sight Range 16 Terrain Scan Density 10 ECM Strength 1 Evasion (%) 55 Item Schematics ----------------- Beam Cannon | -9/Materials | Scanalyzed Sml. Laser | -9/Materials | Scanalyzed Robot Schematics ------------------ None Fabricated ------------ Nothing Alien Tech Used ----------------- None Achievements -------------- None Challenges ------------ None Game ------ Seed LightningDefenseLance Manual? 0 Play Time 00:17:12 Cumulative 3.8 hours Start 2023.10.20 @ 03:35:55 End 2023.12.17 @ 04:17:09 Sessions 5 Manual Loads 0 Difficulty Rogue Special Mode None Game No. 10 Rogue 10 Adventurer 0 Explorer 0 Win Type - Total 0 Types 0/0/0/0/0/0/0/0/0 Lore% 1 Gallery% 8 Achievement% 7 Wizard Run 0 Options --------- ASCII 0 Keyboard 0 Movement Mouse Keybinds 0 Fullscreen 1 Font 18/SmallcapsGlow Map View 76x50 Tactical HUD 0 Map Filters NONE Filters NONE Steam 1 RUN: c6748c89-0e8b-4784-a612-e5ae324f82bc